[Event "Torneo Nuevo Centro. Jornada 10"]
[Site "Chess.com"]
[Date "2020.08.21"]
[Round "5"]
[White "Montesinos Diaz, Luis"]
[Black "Beneyto de Ramon, Guillermo"]
[Result "1-0"]
[WhiteElo "1875"]
[BlackElo "1649"]
[TimeControl "180+2"]
[EndTime "11:21:29 PDT"]
[Termination "Victoria de Gwiso_06 por abandono"]

1. e4 {[%clk 0:03:01.9]} 1... Nf6 {[%clk 0:02:59.3]} 2. e5 {[%clk 0:03:02.1]}
2... Nd5 {[%clk 0:03:00.2]} 3. d4 {[%clk 0:02:58.8]} 3... d6 {[%clk 0:03:01]} 4.
exd6 {[%clk 0:02:59.7]} 4... exd6 {[%clk 0:03:02.9]} 5. Nf3 {[%clk 0:03:01.2]}
5... Be7 {[%clk 0:02:59.8]} 6. c4 {[%clk 0:03:02]} 6... Nb6 {[%clk 0:03:00.2]}
7. Nc3 {[%clk 0:03:02.9]} 7... Bg4 {[%clk 0:02:59.7]} 8. Be2 {[%clk 0:03:03.9]}
8... Nc6 {[%clk 0:02:58.6]} 9. O-O {[%clk 0:02:58.6]} 9... O-O {[%clk
0:02:58.2]} 10. d5 {[%clk 0:02:57.9]} 10... Bxf3 {[%clk 0:02:54.1]} 11. Bxf3
{[%clk 0:02:56.9]} 11... Ne5 {[%clk 0:02:53.6]} 12. b3 {[%clk 0:02:56.5]} 12...
Bf6 {[%clk 0:02:49]} 13. Bb2 {[%clk 0:02:48.6]} 13... c6 {[%clk 0:02:39.3]} 14.
dxc6 {[%clk 0:02:47]} 14... Nxc6 {[%clk 0:02:33.7]} 15. Qc2 {[%clk 0:02:41.7]}
15... Nd4 {[%clk 0:02:26.8]} 16. Qd3 {[%clk 0:02:42.5]} 16... Nxf3+ {[%clk
0:02:27]} 17. Qxf3 {[%clk 0:02:43.4]} 17... Qd7 {[%clk 0:02:22.9]} 18. Rad1
{[%clk 0:02:42.4]} 18... Rad8 {[%clk 0:02:21.8]} 19. c5 {[%clk 0:02:42.7]} 19...
Nc8 {[%clk 0:02:16.8]} 20. cxd6 {[%clk 0:02:39.1]} 20... Nxd6 {[%clk 0:02:13.4]}
21. Rxd6 {[%clk 0:02:25.4]} 21... Qxd6 {[%clk 0:02:12.5]} 22. Ne4 {[%clk
0:02:25.8]} 22... Qe6 {[%clk 0:02:03]} 23. Nxf6+ {[%clk 0:02:23.5]} 23... gxf6
{[%clk 0:02:03.2]} 24. Bxf6 {[%clk 0:02:24.9]} 24... Rd3 {[%clk 0:01:30.9]} 25.
Qf4 {[%clk 0:02:14.8]} 25... Re8 {[%clk 0:00:57.3]} 26. Qg5+ {[%clk 0:02:12]}
26... Kf8 {[%clk 0:00:51.6]} 1

[Event "Torneo Nuevo Centro. Jornada 10"]
[Site "Chess.com"]
[Date "2020.08.21"]
[Round "5"]
[White "Fente Fernandez, Jose Ignacio"]
[Black "Iravedra Ainkov, Francisco"]
[Result "0-1"]
[WhiteElo "1537"]
[BlackElo "1813"]
[TimeControl "180+2"]
[EndTime "11:21:33 PDT"]
[Termination "Victoria de frankeIpro por jaque mate"]

1. e4 {[%clk 0:02:58.4]} 1... d6 {[%clk 0:02:54.5]} 2. d4 {[%clk 0:02:53.4]}
2... Nf6 {[%clk 0:02:52.9]} 3. Nc3 {[%clk 0:02:51.4]} 3... e5 {[%clk 0:02:44.7]}
4. dxe5 {[%clk 0:02:50.8]} 4... dxe5 {[%clk 0:02:46.6]} 5. Qxd8+ {[%clk
0:02:51.6]} 5... Kxd8 {[%clk 0:02:48.5]} 6. Nf3 {[%clk 0:02:51.3]} 6... Bd6
{[%clk 0:02:48.5]} 7. Bg5 {[%clk 0:02:45.8]} 7... Be6 {[%clk 0:02:46.7]} 8.
O-O-O {[%clk 0:02:42.2]} 8... Ke7 {[%clk 0:02:44.2]} 9. Nh4 {[%clk 0:02:26.4]}
9... h6 {[%clk 0:02:33.5]} 10. Bxf6+ {[%clk 0:02:26.7]} 10... gxf6 {[%clk
0:02:30.7]} 11. Nf5+ {[%clk 0:02:27]} 11... Bxf5 {[%clk 0:02:30]} 12. exf5
{[%clk 0:02:28.9]} 12... Nc6 {[%clk 0:02:29.6]} 13. Nd5+ {[%clk 0:02:29.5]}
13... Ke8 {[%clk 0:02:26.7]} 14. Nxf6+ {[%clk 0:02:29.7]} 14... Ke7 {[%clk
0:02:27.1]} 15. Nh5 {[%clk 0:02:16.2]} 15... Rhg8 {[%clk 0:02:23.9]} 16. f6+
{[%clk 0:02:09.1]} 16... Ke6 {[%clk 0:02:14.2]} 17. Bc4+ {[%clk 0:02:05.8]}
17... Kf5 {[%clk 0:02:15.3]} 18. Bxf7 {[%clk 0:01:58.2]} 18... Rg5 {[%clk
0:02:14.6]} 19. Ng7+ {[%clk 0:01:53]} 19... Kxf6 {[%clk 0:02:13.9]} 20. Ne8+
{[%clk 0:01:30.7]} 20... Kxf7 {[%clk 0:02:14.2]} 21. Nxd6+ {[%clk 0:01:31.7]}
21... cxd6 {[%clk 0:02:16.1]} 22. Rxd6 {[%clk 0:01:32.6]} 22... Rxg2 {[%clk
0:02:14.6]} 23. Rxh6 {[%clk 0:01:32.9]} 23... Rag8 {[%clk 0:02:11.8]} 24. b3
{[%clk 0:01:23.3]} 24... Rxf2 {[%clk 0:02:02.5]} 25. Rh7+ {[%clk 0:01:20.6]}
25... Rg7 {[%clk 0:02:03.2]} 26. Rh6 {[%clk 0:01:16.7]} 26... Nd4 {[%clk
0:02:03.1]} 27. c3 {[%clk 0:01:11.1]} 27... Ne2+ {[%clk 0:02:03.9]} 28. Kb1
{[%clk 0:01:10.6]} 28... Nxc3+ {[%clk 0:02:04.3]} 29. Kc1 {[%clk 0:01:07.3]}
29... Rgg2 {[%clk 0:02:04.7]} 30. a4 {[%clk 0:01:00.7]} 30... Rc2# {[%clk
0:02:04.8]} 0

[Event "Torneo Nuevo Centro. Jornada 10"]
[Site "Chess.com"]
[Date "2020.08.21"]
[Round "5"]
[White "Buenafe Moya, Javier"]
[Black "Zamora Soler, Raul"]
[Result "0-1"]
[WhiteElo "1874"]
[BlackElo "1851"]
[TimeControl "180+2"]
[EndTime "11:22:08 PDT"]
[Termination "Victoria de rzamora80 por jaque mate"]

1. c4 {[%clk 0:03:01.9]} 1... e6 {[%clk 0:02:59.3]} 2. Nc3 {[%clk 0:03:00.2]}
2... d5 {[%clk 0:02:59.5]} 3. e3 {[%clk 0:02:59.5]} 3... c6 {[%clk 0:03:00.3]}
4. Nf3 {[%clk 0:02:59]} 4... Nf6 {[%clk 0:03:01.1]} 5. d4 {[%clk 0:03:00.1]}
5... Be7 {[%clk 0:03:01.9]} 6. Be2 {[%clk 0:03:00.2]} 6... O-O {[%clk
0:03:02.8]} 7. O-O {[%clk 0:03:00.9]} 7... Nbd7 {[%clk 0:03:02.8]} 8. b3 {[%clk
0:03:01.8]} 8... dxc4 {[%clk 0:03:03.9]} 9. bxc4 {[%clk 0:03:02.2]} 9... c5
{[%clk 0:03:05]} 10. Bb2 {[%clk 0:03:02.6]} 10... cxd4 {[%clk 0:03:05.9]} 11.
exd4 {[%clk 0:03:02.7]} 11... a6 {[%clk 0:03:06]} 12. d5 {[%clk 0:02:54.9]}
12... exd5 {[%clk 0:03:06.3]} 13. Nxd5 {[%clk 0:02:53.9]} 13... Nxd5 {[%clk
0:03:06.8]} 14. cxd5 {[%clk 0:02:54.8]} 14... Bf6 {[%clk 0:03:04.6]} 15. Bxf6
{[%clk 0:02:54.8]} 15... Nxf6 {[%clk 0:03:04.9]} 16. Bc4 {[%clk 0:02:48]} 16...
Bg4 {[%clk 0:03:01.9]} 17. h3 {[%clk 0:02:43.6]} 17... Bxf3 {[%clk 0:03:02.5]}
18. Qxf3 {[%clk 0:02:44]} 18... Qd6 {[%clk 0:03:03.1]} 19. a4 {[%clk 0:02:43.6]}
19... Nd7 {[%clk 0:02:38.1]} 20. Qg3 {[%clk 0:02:39.7]} 20... Qxg3 {[%clk
0:02:32]} 21. fxg3 {[%clk 0:02:40.4]} 21... Rac8 {[%clk 0:02:30.3]} 22. Rac1
{[%clk 0:02:38]} 22... Nb6 {[%clk 0:02:28.9]} 23. Bb3 {[%clk 0:02:38.2]} 23...
Rfd8 {[%clk 0:02:24.1]} 24. a5 {[%clk 0:02:23.2]} 24... Rxc1 {[%clk 0:02:22.3]}
25. Rxc1 {[%clk 0:02:21.8]} 25... Nc8 {[%clk 0:02:17.5]} 26. Kf2 {[%clk
0:02:06.8]} 26... Kf8 {[%clk 0:02:17.8]} 27. Ke3 {[%clk 0:02:06.2]} 27... Nd6
{[%clk 0:02:16.6]} 28. g4 {[%clk 0:02:03.1]} 28... Rc8 {[%clk 0:02:16.9]} 29.
Rb1 {[%clk 0:01:45.9]} 29... Rc3+ {[%clk 0:02:12.4]} 30. Kd4 {[%clk 0:01:46]}
30... Nb5+ {[%clk 0:02:12.6]} 31. Ke5 {[%clk 0:01:43.8]} 31... Ke7 {[%clk
0:02:09.2]} 32. Ba4 {[%clk 0:01:36.8]} 32... Nd6 {[%clk 0:01:58.6]} 33. Re1
{[%clk 0:01:15.2]} 33... Rc4 {[%clk 0:01:59.1]} 34. g5 {[%clk 0:00:55.2]} 34...
f6+ {[%clk 0:01:59.8]} 35. gxf6+ {[%clk 0:00:56.2]} 35... gxf6# {[%clk
0:02:00.7]} 0

[Event "Torneo Nuevo Centro. Jornada 10"]
[Site "Chess.com"]
[Date "2020.08.21"]
[Round "5"]
[White "Maestre Soler, Sergio"]
[Black "Romera Navia, Alberto"]
[Result "0-1"]
[WhiteElo "915"]
[BlackElo "1788"]
[TimeControl "180+2"]
[EndTime "11:22:16 PDT"]
[Termination "Victoria de ARomera por tiempo"]

1. e4 {[%clk 0:03:01]} 1... e5 {[%clk 0:03:00.8]} 2. Bc4 {[%clk 0:03:01]} 2...
Bc5 {[%clk 0:03:01]} 3. Qh5 {[%clk 0:02:57.5]} 3... Qf6 {[%clk 0:03:00.6]} 4.
Nf3 {[%clk 0:02:20.4]} 4... g6 {[%clk 0:02:59.6]} 5. Qh3 {[%clk 0:02:17.8]} 5...
Ne7 {[%clk 0:02:54.7]} 6. Qg3 {[%clk 0:02:06.9]} 6... d6 {[%clk 0:02:51.4]} 7.
d3 {[%clk 0:01:56.3]} 7... Nd7 {[%clk 0:02:46.9]} 8. Bg5 {[%clk 0:01:56.1]} 8...
Qg7 {[%clk 0:02:40.2]} 9. Bxe7 {[%clk 0:01:46.6]} 9... Kxe7 {[%clk 0:02:42.1]}
10. Ng5 {[%clk 0:01:39.2]} 10... f6 {[%clk 0:02:42.5]} 11. Nf3 {[%clk
0:01:36.6]} 11... Nb6 {[%clk 0:02:41.9]} 12. Nc3 {[%clk 0:01:34.4]} 12... Nxc4
{[%clk 0:02:41.9]} 13. O-O-O {[%clk 0:01:32]} 13... Nb6 {[%clk 0:02:41.5]} 14.
Rhe1 {[%clk 0:01:25.7]} 14... Be6 {[%clk 0:02:38.5]} 15. Nb5 {[%clk 0:01:12]}
15... c6 {[%clk 0:02:21.7]} 16. Nc7 {[%clk 0:01:07.4]} 16... Rac8 {[%clk
0:02:22]} 17. Nxe6 {[%clk 0:01:05.8]} 17... Kxe6 {[%clk 0:02:23.9]} 18. Qg4+
{[%clk 0:00:57.7]} 18... Ke7 {[%clk 0:02:21.3]} 19. a3 {[%clk 0:00:50]} 19... h5
{[%clk 0:02:17.9]} 20. Qg3 {[%clk 0:00:43.1]} 20... a5 {[%clk 0:02:06.2]} 21. h3
{[%clk 0:00:23.2]} 21... Qh6+ {[%clk 0:01:59.8]} 22. Nd2 {[%clk 0:00:17.6]}
22... h4 {[%clk 0:01:58.2]} 0

[Event "Torneo Nuevo Centro. Jornada 10"]
[Site "Chess.com"]
[Date "2020.08.21"]
[Round "5"]
[White "Valero Martinez, Óscar"]
[Black "Soliva Ruiz, Ramon"]
[Result "0-1"]
[WhiteElo "1127"]
[BlackElo "1505"]
[TimeControl "180+2"]
[EndTime "11:22:38 PDT"]
[Termination "Victoria de rasoru por jaque mate"]

1. e4 {[%clk 0:02:59.8]} 1... c5 {[%clk 0:03:00.6]} 2. Nf3 {[%clk 0:03:00.6]}
2... e6 {[%clk 0:03:01.7]} 3. Nc3 {[%clk 0:03:01.5]} 3... a6 {[%clk 0:02:57.1]}
4. Bc4 {[%clk 0:02:58.1]} 4... b5 {[%clk 0:02:54.2]} 5. d3 {[%clk 0:03:00]} 5...
bxc4 {[%clk 0:02:54.5]} 6. dxc4 {[%clk 0:03:00.5]} 6... Nc6 {[%clk 0:02:54.9]}
7. Bf4 {[%clk 0:02:40.7]} 7... d6 {[%clk 0:02:49.8]} 8. e5 {[%clk 0:02:31.7]}
8... Bb7 {[%clk 0:02:11.4]} 9. exd6 {[%clk 0:02:12]} 9... Nf6 {[%clk 0:02:11.6]}
10. Bg5 {[%clk 0:01:59.2]} 10... Qxd6 {[%clk 0:01:54]} 11. Qxd6 {[%clk
0:01:57.5]} 11... Bxd6 {[%clk 0:01:54.8]} 12. O-O {[%clk 0:01:53.7]} 12... Be7
{[%clk 0:01:48.6]} 13. Ne2 {[%clk 0:01:37.3]} 13... O-O {[%clk 0:01:48]} 14. Bf4
{[%clk 0:01:35]} 14... Rad8 {[%clk 0:01:42.5]} 15. Ne5 {[%clk 0:01:31.4]} 15...
Nxe5 {[%clk 0:01:41.9]} 16. Bxe5 {[%clk 0:01:32.5]} 16... Ng4 {[%clk 0:01:31.5]}
17. Bc7 {[%clk 0:01:29]} 17... Rd7 {[%clk 0:01:29.6]} 18. Bb6 {[%clk 0:01:20.8]}
18... Ne5 {[%clk 0:01:11.6]} 19. Nf4 {[%clk 0:01:15.6]} 19... Nxc4 {[%clk
0:01:09.7]} 20. Rae1 {[%clk 0:01:08.2]} 20... Nxb6 {[%clk 0:01:09.1]} 21. Re4
{[%clk 0:00:56]} 21... Bxe4 {[%clk 0:01:07.8]} 22. Re1 {[%clk 0:00:44.8]} 22...
Bxc2 {[%clk 0:01:04.7]} 23. Re2 {[%clk 0:00:39.8]} 23... Rd1+ {[%clk 0:01:03]}
24. Re1 {[%clk 0:00:38.7]} 24... Rxe1# {[%clk 0:01:03.5]} 0

[Event "Torneo Nuevo Centro. Jornada 10"]
[Site "Chess.com"]
[Date "2020.08.21"]
[Round "5"]
[White "Donate Moreno, Silvia"]
[Black "Gukasov, Artem"]
[Result "1-0"]
[WhiteElo "1807"]
[BlackElo "1458"]
[TimeControl "180+2"]
[EndTime "11:22:50 PDT"]
[Termination "Victoria de monetesSAL por tiempo"]

1. e4 {[%clk 0:03:01.9]} 1... e6 {[%clk 0:03:00.2]} 2. d4 {[%clk 0:03:02.4]}
2... d5 {[%clk 0:02:58]} 3. Bd3 {[%clk 0:03:03.5]} 3... c5 {[%clk 0:02:55.5]} 4.
exd5 {[%clk 0:03:04]} 4... exd5 {[%clk 0:02:54]} 5. Nf3 {[%clk 0:03:04.9]} 5...
Nf6 {[%clk 0:02:52.8]} 6. O-O {[%clk 0:03:05.8]} 6... Be7 {[%clk 0:02:51.2]} 7.
dxc5 {[%clk 0:03:03.1]} 7... Bxc5 {[%clk 0:02:49.1]} 8. Re1+ {[%clk 0:03:03.9]}
8... Be6 {[%clk 0:02:49.1]} 9. Ng5 {[%clk 0:03:00.3]} 9... Qb6 {[%clk
0:02:42.2]} 10. Qf3 {[%clk 0:02:57]} 10... O-O {[%clk 0:02:29.7]} 11. Nc3 {[%clk
0:02:55.7]} 11... Bg4 {[%clk 0:02:28.9]} 12. Qg3 {[%clk 0:02:50.9]} 12... h6
{[%clk 0:02:14.6]} 13. Nf3 {[%clk 0:02:43.1]} 13... Nbd7 {[%clk 0:01:59]} 14.
Na4 {[%clk 0:02:43.6]} 14... Qd6 {[%clk 0:01:42.5]} 15. Bf4 {[%clk 0:02:42]}
15... Bxf2+ {[%clk 0:01:31.7]} 16. Kxf2 {[%clk 0:02:40.4]} 16... Qb4 {[%clk
0:00:51.4]} 17. b3 {[%clk 0:02:33.1]} 17... Rfe8 {[%clk 0:00:45.5]} 18. h3
{[%clk 0:02:26.2]} 18... Bxf3 {[%clk 0:00:45.7]} 19. Qxf3 {[%clk 0:02:25.6]}
19... b5 {[%clk 0:00:43.7]} 20. Nb2 {[%clk 0:02:23.4]} 20... Rxe1 {[%clk
0:00:35.2]} 21. Rxe1 {[%clk 0:02:22]} 21... Qd4+ {[%clk 0:00:35.8]} 22. Kf1
{[%clk 0:02:09.7]} 22... Qxb2 {[%clk 0:00:33.7]} 23. Bxb5 {[%clk 0:02:10.4]}
23... Nb6 {[%clk 0:00:18.3]} 24. Bd3 {[%clk 0:02:02.8]} 24... Re8 {[%clk
0:00:14.7]} 25. Rxe8+ {[%clk 0:02:00.7]} 25... Nxe8 {[%clk 0:00:14.2]} 26. a4
{[%clk 0:01:54.8]} 26... Qb1+ {[%clk 0:00:12.8]} 27. Kf2 {[%clk 0:01:52.3]}
27... Qb2 {[%clk 0:00:10.8]} 28. Qe2 {[%clk 0:01:47.4]} 28... Kf8 {[%clk
0:00:09.1]} 29. Be5 {[%clk 0:01:47.7]} 1

[Event "Torneo Nuevo Centro. Jornada 10"]
[Site "Chess.com"]
[Date "2020.08.21"]
[Round "5"]
[White "Martínez Escandell, Alfonso"]
[Black "Blanco Solaz, Ramón"]
[Result "1-0"]
[WhiteElo "1873"]
[BlackElo "1999"]
[TimeControl "180+2"]
[EndTime "11:22:52 PDT"]
[Termination "Victoria de Alfonso10 por abandono"]

1. e4 {[%clk 0:03:01.9]} 1... c5 {[%clk 0:03:00.4]} 2. Nf3 {[%clk 0:03:01.1]}
2... d6 {[%clk 0:03:01.4]} 3. d4 {[%clk 0:03:00.3]} 3... cxd4 {[%clk 0:03:03.3]}
4. Nxd4 {[%clk 0:02:58.8]} 4... Nf6 {[%clk 0:03:04.1]} 5. Nc3 {[%clk 0:02:46.6]}
5... a6 {[%clk 0:03:05.3]} 6. a4 {[%clk 0:02:43.5]} 6... e5 {[%clk 0:03:05.7]}
7. Nb3 {[%clk 0:02:41.7]} 7... b6 {[%clk 0:03:05.6]} 8. Be2 {[%clk 0:02:36.9]}
8... Bb7 {[%clk 0:03:05.8]} 9. Bf3 {[%clk 0:02:32.4]} 9... Be7 {[%clk
0:03:06.2]} 10. O-O {[%clk 0:02:31.1]} 10... O-O {[%clk 0:03:07.2]} 11. Qe2
{[%clk 0:02:27]} 11... Nbd7 {[%clk 0:03:04]} 12. Rd1 {[%clk 0:02:23.3]} 12...
Qc7 {[%clk 0:03:03.6]} 13. Bg5 {[%clk 0:02:17.8]} 13... Rac8 {[%clk 0:03:03.9]}
14. Bg4 {[%clk 0:02:14.6]} 14... Rfd8 {[%clk 0:02:49.2]} 15. Bf5 {[%clk
0:02:07.1]} 15... h6 {[%clk 0:02:45.9]} 16. Bh4 {[%clk 0:02:02.6]} 16... g5
{[%clk 0:02:41.6]} 17. Bg3 {[%clk 0:02:00.3]} 17... Ne8 {[%clk 0:02:26.9]} 18.
Nd5 {[%clk 0:01:52.2]} 18... Bxd5 {[%clk 0:02:27.6]} 19. exd5 {[%clk 0:01:48.8]}
19... Ng7 {[%clk 0:02:23.6]} 20. Bd3 {[%clk 0:01:43.7]} 20... f5 {[%clk
0:02:21.4]} 21. h4 {[%clk 0:01:37.5]} 21... gxh4 {[%clk 0:02:19.1]} 22. Bh2
{[%clk 0:01:34.1]} 22... a5 {[%clk 0:02:19.7]} 23. Nd4 {[%clk 0:01:30.1]} 23...
Nf8 {[%clk 0:02:06.5]} 24. Nxf5 {[%clk 0:01:26.4]} 24... Bg5 {[%clk 0:01:59]}
25. Nxg7 {[%clk 0:01:19.3]} 25... Kxg7 {[%clk 0:02:00.3]} 26. Bf5 {[%clk
0:01:15.9]} 26... Rb8 {[%clk 0:02:00.4]} 27. Ra3 {[%clk 0:01:11.3]} 27... Nd7
{[%clk 0:01:53.2]} 28. Rc3 {[%clk 0:01:09.1]} 28... Qb7 {[%clk 0:01:53.3]} 29.
Rc6 {[%clk 0:01:05.5]} 29... Nf6 {[%clk 0:01:52.9]} 30. c4 {[%clk 0:01:03.1]}
30... Rbc8 {[%clk 0:01:49.5]} 31. Bxc8 {[%clk 0:01:00.3]} 31... Rxc8 {[%clk
0:01:51.4]} 32. Rxd6 {[%clk 0:00:57.4]} 32... Qe7 {[%clk 0:01:49]} 33. Bxe5
{[%clk 0:00:53.2]} 33... Kg8 {[%clk 0:01:41.8]} 34. Re6 {[%clk 0:00:49.6]} 34...
Qf7 {[%clk 0:01:41.3]} 35. Bxf6 {[%clk 0:00:48.1]} 35... Bxf6 {[%clk 0:01:43.2]}
36. Rxf6 {[%clk 0:00:40.8]} 36... Qxf6 {[%clk 0:01:43.7]} 37. Qg4+ {[%clk
0:00:42.1]} 1

[Event "Torneo Nuevo Centro. Jornada 10"]
[Site "Chess.com"]
[Date "2020.08.21"]
[Round "5"]
[White "Grigorev, Artur "]
[Black "Fitzpatrick Dimas, Kevin"]
[Result "0-1"]
[WhiteElo "928"]
[BlackElo "861"]
[TimeControl "180+2"]
[EndTime "11:23:22 PDT"]
[Termination "Victoria de KevinFDJ por jaque mate"]

1. e4 {[%clk 0:03:01.9]} 1... e5 {[%clk 0:03:01.3]} 2. Nf3 {[%clk 0:03:01.3]}
2... Bc5 {[%clk 0:03:02.6]} 3. Bc4 {[%clk 0:03:00.2]} 3... Nc6 {[%clk
0:02:55.4]} 4. b4 {[%clk 0:03:00.4]} 4... Bxb4 {[%clk 0:02:54.9]} 5. c3 {[%clk
0:03:01.2]} 5... Bc5 {[%clk 0:02:55.5]} 6. d4 {[%clk 0:03:01.8]} 6... exd4
{[%clk 0:02:56.3]} 7. O-O {[%clk 0:03:01.2]} 7... dxc3 {[%clk 0:02:56]} 8. Bxf7+
{[%clk 0:03:01.9]} 8... Kxf7 {[%clk 0:02:52.9]} 9. Qd5+ {[%clk 0:03:01.9]} 9...
Ke8 {[%clk 0:02:52.5]} 10. Qxc5 {[%clk 0:02:59.4]} 10... d6 {[%clk 0:02:52.5]}
11. Qxc3 {[%clk 0:02:59.2]} 11... Be6 {[%clk 0:02:45.1]} 12. Qxg7 {[%clk
0:02:54.4]} 12... Qf6 {[%clk 0:02:36.4]} 13. Qxf6 {[%clk 0:02:49.8]} 13... Nxf6
{[%clk 0:02:34.7]} 14. e5 {[%clk 0:02:47.5]} 14... dxe5 {[%clk 0:02:34.6]} 15.
Nxe5 {[%clk 0:02:48]} 15... Nxe5 {[%clk 0:02:34.3]} 16. Re1 {[%clk 0:02:48.9]}
16... Ke7 {[%clk 0:02:29.6]} 17. Rxe5 {[%clk 0:02:48.1]} 17... Rad8 {[%clk
0:02:25.7]} 18. h3 {[%clk 0:02:47.1]} 18... Rd1+ {[%clk 0:02:21.3]} 19. Kh2
{[%clk 0:02:47.1]} 19... Rxc1 {[%clk 0:02:16.5]} 20. Ra5 {[%clk 0:02:46.8]}
20... a6 {[%clk 0:02:14.2]} 21. Ra4 {[%clk 0:02:37]} 21... Bd7 {[%clk
0:02:05.9]} 22. Rb4 {[%clk 0:02:21.5]} 22... b6 {[%clk 0:01:55.1]} 23. a4 {[%clk
0:02:12.2]} 23... a5 {[%clk 0:01:54.5]} 24. Rb3 {[%clk 0:02:03.9]} 24... Rc2
{[%clk 0:01:52.3]} 25. Na3 {[%clk 0:02:01.1]} 25... Rxf2 {[%clk 0:01:51.2]} 26.
Re1+ {[%clk 0:01:58.1]} 26... Kd8 {[%clk 0:01:49.6]} 27. Rd3 {[%clk 0:01:49.3]}
27... Rg8 {[%clk 0:01:46.2]} 28. Nc4 {[%clk 0:01:49.3]} 28... Rfxg2+ {[%clk
0:01:45.4]} 29. Kh1 {[%clk 0:01:48.2]} 29... Kc8 {[%clk 0:01:39.6]} 30. Ne5
{[%clk 0:01:43.4]} 30... Bf5 {[%clk 0:01:30.8]} 31. Rd4 {[%clk 0:01:35.3]} 31...
Bxh3 {[%clk 0:01:28.1]} 32. Rh4 {[%clk 0:01:32.2]} 32... R8g3 {[%clk 0:01:24.3]}
33. Nf7 {[%clk 0:01:29]} 33... Kd7 {[%clk 0:01:14.3]} 34. Rd1+ {[%clk
0:01:28.5]} 34... Ke7 {[%clk 0:01:14.2]} 35. Ng5 {[%clk 0:01:26]} 35... Bg4
{[%clk 0:01:11.4]} 36. Re1+ {[%clk 0:01:18.6]} 36... Kd8 {[%clk 0:01:09.9]} 37.
Nf7+ {[%clk 0:01:06.1]} 37... Kc8 {[%clk 0:01:09.3]} 38. Re6 {[%clk 0:01:01.4]}
38... Rg1+ {[%clk 0:01:08.6]} 39. Kh2 {[%clk 0:00:58]} 39... R3g2# {[%clk
0:01:07]} 0

[Event "Torneo Nuevo Centro. Jornada 10"]
[Site "Chess.com"]
[Date "2020.08.21"]
[Round "5"]
[White "Chofre Murcia, Adrián"]
[Black "Yuste Valenzuela, Alejandro"]
[Result "0-1"]
[WhiteElo "1663"]
[BlackElo "1879"]
[TimeControl "180+2"]
[EndTime "11:23:25 PDT"]
[Termination "Victoria de alejandrito290 por abandono"]

1. e4 {[%clk 0:03:01.9]} 1... c5 {[%clk 0:03:00.9]} 2. Nf3 {[%clk 0:03:01.9]}
2... d6 {[%clk 0:03:01.6]} 3. c3 {[%clk 0:03:01]} 3... Nf6 {[%clk 0:03:02.1]} 4.
d3 {[%clk 0:02:59]} 4... g6 {[%clk 0:03:03.1]} 5. Bg5 {[%clk 0:02:57.6]} 5...
Bg7 {[%clk 0:03:04]} 6. Nbd2 {[%clk 0:02:58.4]} 6... O-O {[%clk 0:03:04.3]} 7.
Be2 {[%clk 0:02:56.1]} 7... Nc6 {[%clk 0:03:05]} 8. O-O {[%clk 0:02:55.8]} 8...
h6 {[%clk 0:03:05.5]} 9. Bh4 {[%clk 0:02:56.3]} 9... g5 {[%clk 0:03:04.7]} 10.
Bg3 {[%clk 0:02:41.1]} 10... Nh5 {[%clk 0:02:59.4]} 11. Nb3 {[%clk 0:02:28.4]}
11... Nxg3 {[%clk 0:02:58.5]} 12. fxg3 {[%clk 0:02:28.9]} 12... a6 {[%clk
0:02:55.7]} 13. d4 {[%clk 0:02:27.5]} 13... cxd4 {[%clk 0:02:56]} 14. Nfxd4
{[%clk 0:02:28.5]} 14... Nxd4 {[%clk 0:02:54.1]} 15. Nxd4 {[%clk 0:02:29]} 15...
b5 {[%clk 0:02:51]} 16. Nf5 {[%clk 0:02:21.5]} 16... Bxf5 {[%clk 0:02:37.8]} 17.
exf5 {[%clk 0:02:17.4]} 17... a5 {[%clk 0:02:34.9]} 18. Kh1 {[%clk 0:02:16.5]}
18... b4 {[%clk 0:02:35.4]} 19. cxb4 {[%clk 0:02:16.1]} 19... axb4 {[%clk
0:02:37.3]} 20. Qb3 {[%clk 0:02:01.2]} 20... Qa5 {[%clk 0:02:33]} 21. h3 {[%clk
0:01:35.2]} 21... Bf6 {[%clk 0:02:30.6]} 22. h4 {[%clk 0:01:23.4]} 22... Qe5
{[%clk 0:02:13.8]} 23. hxg5 {[%clk 0:00:47.3]} 23... hxg5 {[%clk 0:02:15.7]} 24.
Rfe1 {[%clk 0:00:32.5]} 24... Qxb2 {[%clk 0:01:47]} 25. Rab1 {[%clk 0:00:20.2]}
25... Qxb3 {[%clk 0:01:44.5]} 26. axb3 {[%clk 0:00:20.7]} 26... Bc3 {[%clk
0:01:44.9]} 27. Red1 {[%clk 0:00:20.6]} 27... Kg7 {[%clk 0:01:45.1]} 28. Bc4
{[%clk 0:00:21.5]} 28... Be5 {[%clk 0:01:40.7]} 29. g4 {[%clk 0:00:22.1]} 29...
Ra2 {[%clk 0:01:36.7]} 30. Re1 {[%clk 0:00:19.1]} 30... Bd4 {[%clk 0:01:33.4]}
31. Kh2 {[%clk 0:00:15.5]} 31... Bf2 {[%clk 0:01:27.5]} 32. g3 {[%clk
0:00:09.3]} 32... Bxe1+ {[%clk 0:01:26.3]} 33. Kg1 {[%clk 0:00:07.8]} 33... Bc3
{[%clk 0:01:25.8]} 34. Re1 {[%clk 0:00:08.2]} 0